bitfinex/quotes_BTCUSD_20240718
["timestamp","ask_amount","ask_price","bid_price","bid_amount"]
[1721331768918,0.36723579,63669.0,63668.0,0.025]
[1721331769163,0.36723579,63669.0,63668.0,0.58132728]
[1721331769576,0.36173174,63669.0,63668.0,0.58132728]
[1721331769757,0.36073174,63669.0,63668.0,0.55630258]
[1721331769987,0.36621924,63669.0,63668.0,0.55630258]
[1721331770220,0.36821924,63669.0,63668.0,0.67530258]
[1721331770618,0.36721924,63669.0,63668.0,0.67630258]
[1721331770837,0.36921924,63669.0,63668.0,0.68530258]
[1721331772958,0.36921924,63669.0,63668.0,0.68573146]
[1721331773597,0.36921924,63669.0,63668.0,0.37160246]
[1721331773811,0.36921924,63669.0,63668.0,0.68573146]
[1721331775872,0.36921924,63669.0,63668.0,0.914322]
[1721331776066,0.36921924,63669.0,63668.0,1.00007581]
[1721331776488,0.36921924,63669.0,63668.0,1.00007178]
[1721331776946,0.36373174,63669.0,63668.0,1.00007178]
[1721331777381,0.36921433,63669.0,63668.0,1.00007178]
[1721331778264,0.20411433,63669.0,63668.0,1.00007178]
[1721331779030,0.16286433,63669.0,63668.0,1.31434219]
[1721331779625,0.15738174,63669.0,63668.0,1.34240093]
[1721331779853,0.15738174,63669.0,63668.0,1.52560093]
[1721331780295,0.15738174,63669.0,63668.0,1.84493184]
[1721331780507,0.15738174,63669.0,63668.0,1.52560093]
[1721331780732,0.15738174,63669.0,63668.0,3.07248588]
[1721331781186,0.003,63669.0,63668.0,3.38661488]
[1721331781410,0.003,63669.0,63668.0,3.58876317]
[1721331781651,0.003,63669.0,63668.0,3.68252525]
[1721331781938,0.003,63669.0,63668.0,3.73691826]
[1721331782633,0.003,63669.0,63668.0,4.24566826]
[1721331782845,0.06993,63686.0,63680.0,1.099245]
[1721331783063,0.06993,63686.0,63680.0,1.53767688]
[1721331783064,0.00083,63686.0,63680.0,1.53767688]
[1721331783248,0.00083,63686.0,63685.0,1.099157]
[1721331783521,0.15521174,63686.0,63685.0,1.28568888]
[1721331783755,0.15521174,63686.0,63685.0,2.78568888]
[1721331784442,0.19646174,63686.0,63685.0,2.385112]
[1721331784658,0.19646174,63686.0,63685.0,2.47123501]
[1721331784883,0.19646174,63686.0,63685.0,0.885112]
[1721331785094,0.19746174,63686.0,63685.0,0.894112]
[1721331785784,0.19746174,63686.0,63685.0,0.98024182]
[1721331786034,0.19746174,63686.0,63685.0,0.98524182]
[1721331786249,0.15621174,63686.0,63685.0,1.29928682]
[1721331786462,0.19746174,63686.0,63685.0,2.79928682]
[1721331786906,0.15621174,63686.0,63685.0,1.29928682]
[1721331787552,0.15621174,63686.0,63685.0,1.213157]
[1721331787781,0.19746174,63686.0,63685.0,1.213157]
[1721331788004,0.19746174,63686.0,63685.0,0.899112]
[1721331788220,0.19746174,63686.0,63685.0,0.98508775]
[1721331788447,0.15621174,63686.0,63685.0,1.29913275]
[1721331788888,0.19746174,63686.0,63685.0,0.98508775]
[1721331789209,0.20298132,63686.0,63685.0,0.98508775]
[1721331789424,0.16173132,63686.0,63685.0,0.98508775]
[1721331789730,0.16173132,63686.0,63685.0,1.48233275]
[1721331790303,0.15621174,63686.0,63685.0,1.48233275]
[1721331790976,0.00183,63686.0,63685.0,1.55713275]
[1721331791242,0.00183,63686.0,63685.0,1.471157]
[1721331791457,0.00183,63686.0,63685.0,1.55647881]
[1721331791881,0.04308,63686.0,63685.0,1.48167881]
[1721331792122,0.00183,63686.0,63685.0,1.48167881]
[1721331792342,0.19746174,63686.0,63685.0,1.16763381]
[1721331794962,0.19746174,63686.0,63685.0,1.17188796]
[1721331795385,0.19746174,63686.0,63685.0,1.17196258]
[1721331795616,0.29276174,63686.0,63685.0,0.20365058]
[1721331795831,0.29276174,63686.0,63685.0,0.10365569]
[1721331796070,0.30218412,63686.0,63685.0,0.10365569]
[1721331796489,0.29825835,63686.0,63685.0,0.10365569]
[1721331796937,0.29825835,63686.0,63685.0,0.014]
[1721331796938,0.37188407,63686.0,63685.0,0.014]
[1721331797183,0.61028407,63686.0,63685.0,0.014]
[1721331797845,0.60928407,63686.0,63685.0,0.005]
[1721331798061,0.60928407,63686.0,63685.0,0.007]
[1721331798286,0.55928407,63686.0,63685.0,0.007]
[1721331798541,0.55928407,63686.0,63685.0,0.005]
[1721331798746,0.61428407,63686.0,63685.0,0.006]
[1721331799667,0.20835,63671.0,63670.0,0.1]
[1721331799933,0.36273174,63671.0,63670.0,0.18918591]
[1721331800431,0.36821576,63671.0,63670.0,0.18918591]
[1721331800941,0.36821576,63671.0,63670.0,0.08918591]
[1721331801207,0.36821576,63671.0,63670.0,0.18918591]
[1721331801444,0.36273174,63671.0,63670.0,0.19818591]
[1721331801684,0.36273174,63671.0,63670.0,0.109]
[1721331801927,0.36819795,63671.0,63670.0,0.1]
[1721331802165,0.36819795,63671.0,63670.0,0.01]
[1721331802624,0.36819795,63671.0,63668.0,0.000913]
[1721331802853,0.19563174,63669.0,63668.0,0.000913]
[1721331803331,0.20109335,63669.0,63668.0,0.000913]
[1721331804500,0.20109335,63669.0,63668.0,0.009913]
[1721331805018,0.20109335,63669.0,63668.0,0.021913]
[1721331805219,0.20109335,63669.0,63668.0,0.000913]
[1721331805430,0.20109335,63669.0,63668.0,0.011913]
[1721331805892,0.20109335,63669.0,63668.0,0.025913]
[1721331806138,0.20209335,63669.0,63668.0,0.025913]
[1721331806810,0.20209335,63669.0,63668.0,1.08298258]
[1721331806811,0.16084335,63669.0,63668.0,1.08298258]
[1721331807062,0.16084335,63669.0,63668.0,1.49708993]
[1721331807286,0.19663174,63669.0,63668.0,2.99708993]
[1721331807505,0.15538174,63669.0,63668.0,2.908564]
[1721331807716,0.15438174,63669.0,63668.0,2.97245362]
[1721331807932,0.04125,63675.0,63668.0,1.88400262]
[1721331808153,0.04125,63675.0,63674.0,0.968447]
[1721331808378,0.04125,63675.0,63674.0,1.15733662]
[1721331809339,0.19663174,63675.0,63674.0,1.16933662]
[1721331810436,0.15538174,63675.0,63674.0,1.48343562]
[1721331810667,0.19663174,63675.0,63674.0,1.49246732]
[1721331810896,0.15438174,63675.0,63674.0,1.48046732]
[1721331811151,0.00392614,63685.0,63674.0,0.55122132]
[1721331811355,0.00083,63686.0,63685.0,0.785112]
[1721331811581,0.00083,63686.0,63685.0,0.97403332]
[1721331811582,0.04208,63686.0,63685.0,0.97403332]
[1721331811796,0.04208,63686.0,63685.0,0.65998832]
[1721331813428,0.19646174,63686.0,63685.0,0.1]
[1721331813647,0.04125,63682.0,63681.0,0.157031]
[1721331813859,0.19563174,63682.0,63681.0,0.24554643]
[1721331814092,0.19563174,63682.0,63681.0,0.257031]
[1721331814311,0.20067324,63682.0,63681.0,0.34554312]
[1721331814766,0.36597324,63682.0,63681.0,0.34554312]
[1721331814986,0.36597324,63682.0,63681.0,0.18851212]
[1721331815205,0.36597324,63682.0,63681.0,0.20051212]
[1721331815465,0.36597324,63682.0,63681.0,0.21051212]
[1721331815681,0.36597324,63682.0,63681.0,0.022]
[1721331817041,0.36597324,63682.0,63681.0,0.01]
[1721331817255,0.36597324,63682.0,63681.0,0.013]
[1721331817500,0.04125,63672.0,63671.0,0.1]
[1721331817729,0.04125,63672.0,63668.0,0.000913]
[1721331817730,0.04125,63669.0,63668.0,0.000913]
[1721331817957,0.19563174,63669.0,63668.0,0.000913]
[1721331818185,0.20065716,63669.0,63668.0,0.000913]
[1721331818410,0.20065716,63669.0,63668.0,0.09296498]
[1721331818637,0.20065716,63669.0,63668.0,0.25002898]
[1721331818863,0.20065716,63669.0,63668.0,0.26402898]
[1721331819124,0.20065716,63669.0,63668.0,0.20696498]
[1721331819343,0.20065716,63669.0,63668.0,0.21796498]
[1721331820004,0.19563174,63669.0,63668.0,0.125913]
[1721331820198,0.19563174,63669.0,63668.0,0.21737908]
[1721331820672,0.19563174,63669.0,63668.0,0.37444308]
[1721331820897,0.19563174,63669.0,63668.0,1.00270108]
[1721331821127,0.15438174,63669.0,63668.0,1.38793008]
[1721331821338,0.20065716,63669.0,63668.0,0.68857208]
[1721331821557,0.20065716,63669.0,63668.0,1.18590108]
[1721331821558,0.15438174,63669.0,63668.0,1.18590108]
[1721331821768,0.15438174,63669.0,63668.0,1.50003008]
[1721331822633,0.15438174,63669.0,63668.0,1.52776454]
[1721331823078,0.19563174,63669.0,63668.0,0.40216588]
[1721331823314,0.19563174,63669.0,63668.0,0.21737908]
[1721331823537,0.36885716,63669.0,63668.0,0.21764183]
[1721331823987,0.36885716,63669.0,63668.0,0.2176583]
[1721331825595,0.20065716,63669.0,63668.0,1.0029803]
[1721331826063,0.19563174,63669.0,63668.0,0.6888513]
[1721331826279,0.19563174,63669.0,63668.0,0.87147639]
[1721331826499,0.19563174,63669.0,63668.0,1.18560539]
[1721331826702,0.19563174,63669.0,63668.0,1.21333245]
[1721331826909,0.19563174,63669.0,63668.0,1.18560539]
[1721331827335,0.19563174,63669.0,63668.0,1.34426038]
[1721331827593,0.19563174,63669.0,63668.0,1.52746038]
[1721331827825,0.19563174,63669.0,63668.0,1.49973439]
[1721331828585,0.19563174,63669.0,63668.0,0.21708339]
[1721331829268,0.19563174,63669.0,63668.0,0.37444931]
[1721331829497,0.19563174,63669.0,63668.0,0.68857831]
[1721331829719,0.19563174,63669.0,63668.0,0.37444931]
[1721331830359,0.19563174,63669.0,63668.0,1.00270731]
[1721331830788,0.19563174,63669.0,63668.0,1.18590731]
[1721331832354,0.19563174,63669.0,63668.0,1.1862833]
[1721331832788,0.19563174,63669.0,63668.0,0.87205538]
[1721331832997,0.19563174,63669.0,63668.0,0.37472638]
[1721331832998,0.26553174,63669.0,63668.0,0.37472638]
[1721331833422,0.27077695,63669.0,63668.0,0.68885538]
[1721331833836,0.26553174,63669.0,63668.0,0.68885538]
[1721331835249,0.36003174,63669.0,63668.0,0.11766238]
[1721331835486,0.59843174,63669.0,63668.0,0.025913]
[1721331835708,0.20875,63651.0,63650.0,0.934209]
[1721331835925,0.36313174,63651.0,63650.0,0.56263103]
[1721331836166,0.36313174,63651.0,63650.0,0.09130403]
[1721331836397,0.36835194,63651.0,63650.0,0.09130403]
[1721331836626,0.36835194,63651.0,63648.0,0.000913]
[1721331836627,0.04125,63649.0,63648.0,0.000913]
[1721331836870,0.19956012,63649.0,63648.0,0.000913]
[1721331837113,0.20477516,63649.0,63648.0,0.000913]
[1721331837327,0.37337516,63649.0,63648.0,0.000913]
[1721331838243,0.42337516,63649.0,63648.0,0.000913]
[1721331838907,0.58877516,63649.0,63648.0,0.000913]
[1721331839134,0.61177516,63649.0,63648.0,0.000913]
[1721331839771,0.56177516,63649.0,63648.0,0.000913]
[1721331839993,0.56177516,63649.0,63648.0,0.002913]
[1721331840202,0.52152516,63649.0,63648.0,0.000913]
[1721331840424,0.37437516,63649.0,63648.0,0.001913]
[1721331842994,0.42437516,63649.0,63648.0,0.001913]
[1721331843220,0.58977516,63649.0,63648.0,0.001913]
[1721331843484,0.61277516,63649.0,63648.0,0.001913]
[1721331843713,0.56277516,63649.0,63648.0,0.001913]
[1721331843940,0.61277516,63649.0,63648.0,0.001913]
[1721331845508,0.56277516,63649.0,63648.0,0.001913]
[1721331845734,0.61277516,63649.0,63648.0,0.001913]
[1721331847810,0.6780198,63649.0,63648.0,0.001913]
[1721331848248,0.6780198,63649.0,63648.0,0.000913]
[1721331848640,0.61277516,63649.0,63648.0,0.000913]
[1721331849111,0.61177516,63649.0,63648.0,0.000913]
[1721331849346,0.62277516,63649.0,63648.0,0.001913]
[1721331849800,0.62377516,63649.0,63648.0,0.001913]
[1721331850021,0.57277516,63649.0,63648.0,0.001913]
[1721331850248,0.57277516,63649.0,63648.0,0.002913]
[1721331850249,0.63677516,63649.0,63648.0,0.002913]
[1721331850466,0.58677516,63649.0,63648.0,0.002913]
[1721331850707,0.63677516,63649.0,63648.0,0.002913]
[1721331851402,0.58677516,63649.0,63648.0,0.002913]
[1721331851635,0.63677516,63649.0,63648.0,0.002913]
[1721331854507,0.56377516,63649.0,63648.0,0.002913]
[1721331855604,0.55277516,63649.0,63648.0,0.001913]
[1721331855829,0.56377516,63649.0,63648.0,0.002913]
[1721331856044,0.54977516,63649.0,63648.0,0.001913]
[1721331856231,0.54877516,63649.0,63648.0,0.001913]
[1721331856734,0.22577516,63649.0,63648.0,0.002913]
[1721331857186,0.31867516,63649.0,63648.0,0.002913]
[1721331859192,0.36867516,63649.0,63648.0,0.002913]
[1721331859405,0.53407516,63649.0,63648.0,0.002913]
[1721331859648,0.62657516,63649.0,63648.0,0.002913]
[1721331860344,0.57657516,63649.0,63648.0,0.002913]
[1721331861010,0.62657516,63649.0,63648.0,0.002913]
[1721331863185,0.69181244,63649.0,63648.0,0.002913]
[1721331863416,0.62657516,63649.0,63648.0,0.002913]
[1721331863643,0.69181213,63649.0,63648.0,0.002913]
[1721331864964,0.64181213,63649.0,63648.0,0.002913]
[1721331865216,0.78189788,63649.0,63648.0,0.002913]
[1721331865425,0.29100934,63649.0,63648.0,0.002913]
[1721331865643,0.29100609,63649.0,63648.0,0.002913]
[1721331865867,0.22577516,63649.0,63648.0,0.002913]
[1721331866090,0.29100472,63649.0,63648.0,0.002913]
[1721331866317,0.28000472,63649.0,63648.0,0.001913]
[1721331866861,0.28500472,63649.0,63648.0,0.001913]
[1721331867321,0.28500472,63649.0,63648.0,0.163613]
[1721331867322,0.21977516,63649.0,63648.0,0.163613]
[1721331867536,0.21584678,63649.0,63648.0,0.263613]
[1721331867790,0.20584678,63649.0,63648.0,0.262613]
[1721331868258,0.20063174,63649.0,63648.0,0.262613]
[1721331868522,0.20376713,63649.0,63648.0,0.262613]
[1721331868759,0.20376713,63649.0,63648.0,0.265613]
[1721331869190,0.19863174,63649.0,63648.0,0.265613]
[1721331869878,0.19563174,63649.0,63648.0,0.265613]
[1721331870088,0.19563174,63649.0,63648.0,0.270613]
[1721331871008,0.19563174,63649.0,63648.0,0.35992632]
[1721331871232,0.19563174,63649.0,63648.0,0.270613]
[1721331872323,0.19563174,63649.0,63648.0,0.108913]
[1721331872746,0.20076713,63649.0,63648.0,0.108913]
[1721331873664,0.20076713,63649.0,63648.0,0.008913]
[1721331874370,0.20076713,63649.0,63648.0,0.19810913]
[1721331875035,0.20076713,63649.0,63648.0,0.19801678]
[1721331877261,0.20076713,63649.0,63648.0,0.56935878]
[1721331877508,0.20076713,63649.0,63648.0,0.19801678]
[1721331877727,0.19563174,63649.0,63648.0,0.19801678]
[1721331878205,0.20077314,63649.0,63648.0,0.19813372]
[1721331878425,0.19563174,63649.0,63648.0,0.19813372]
[1721331878657,0.19563174,63649.0,63648.0,0.19813478]
[1721331879104,0.20077314,63649.0,63648.0,0.19813818]
[1721331879335,0.20077314,63649.0,63648.0,0.008913]
[1721331879560,0.20077314,63649.0,63648.0,0.108913]
[1721331880265,0.20077314,63649.0,63648.0,0.20245401]
[1721331881432,0.20077314,63649.0,63648.0,0.20212211]
[1721331884264,0.20077314,63649.0,63648.0,0.20261709]
[1721331887299,0.20077314,63649.0,63648.0,0.35973109]
[1721331887538,0.19563174,63649.0,63648.0,0.35968069]
[1721331887991,0.19563174,63649.0,63648.0,0.35968542]
[1721331890690,0.19563174,63649.0,63648.0,0.266027]
[1721331890874,0.19563174,63649.0,63648.0,0.35965676]
[1721331891498,0.19563174,63649.0,63648.0,0.20254276]
[1721331892008,0.35163174,63649.0,63648.0,0.008913]
[1721331892216,0.44501503,63649.0,63648.0,0.008913]
[1721331892629,0.44493964,63649.0,63648.0,0.008913]
[1721331892902,0.44493964,63649.0,63648.0,0.000913]
[1721331893138,0.45093964,63649.0,63648.0,0.000913]
[1721331893769,0.45094125,63649.0,63648.0,0.000913]
[1721331895048,0.61402654,63649.0,63648.0,0.000913]
[1721331895254,0.45094125,63649.0,63648.0,0.000913]
[1721331896109,0.50094125,63649.0,63648.0,0.000913]
[1721331896815,0.43570722,63649.0,63648.0,0.000913]
[1721331897055,0.45094117,63649.0,63648.0,0.000913]
[1721331897482,0.66634117,63649.0,63648.0,0.000913]
[1721331897696,0.82942748,63649.0,63648.0,0.000913]
[1721331898838,0.900025,63649.0,63648.0,0.000913]
[1721331899285,0.82942748,63649.0,63648.0,0.000913]
[1721331899514,0.82542748,63649.0,63648.0,0.000913]
[1721331899723,0.82542748,63649.0,63648.0,0.001913]
[1721331899724,0.83242748,63649.0,63648.0,0.001913]
[1721331899969,0.78119353,63649.0,63648.0,0.002913]
[1721331900190,0.84643366,63649.0,63648.0,0.002913]
[1721331900441,0.79643366,63649.0,63648.0,0.002913]
[1721331900713,0.22370722,63649.0,63648.0,0.636955]
[1721331900990,0.22370722,63649.0,63648.0,0.73095004]
[1721331901179,0.22370722,63649.0,63648.0,0.83095004]
[1721331901436,0.17730635,63649.0,63648.0,1.14517804]
[1721331901680,0.17730635,63649.0,63648.0,1.53392458]
[1721331901905,0.17730635,63649.0,63648.0,1.4869159]
[1721331902130,0.16830635,63649.0,63648.0,1.4859159]
[1721331902351,0.16830635,63649.0,63648.0,1.52186044]
[1721331902571,0.16830635,63649.0,63648.0,1.55036512]
[1721331902572,0.17530635,63649.0,63648.0,1.55036512]
[1721331902809,0.17530635,63649.0,63648.0,1.16070375]
[1721331902810,0.20255635,63649.0,63648.0,1.16070375]
[1721331903067,0.15530635,63649.0,63648.0,1.17170375]
[1721331903309,0.19755635,63649.0,63648.0,1.17170375]
[1721331903990,0.19755635,63649.0,63648.0,1.15970375]
[1721331903991,0.19655635,63649.0,63648.0,1.15970375]
[1721331904212,0.19755635,63649.0,63648.0,1.36690375]
[1721331904436,0.19855635,63649.0,63648.0,1.36690375]
[1721331904680,0.19855635,63649.0,63648.0,1.66913175]
[1721331904681,0.15630635,63649.0,63648.0,1.66913175]
[1721331905195,0.15479798,63649.0,63648.0,1.558611]
[1721331905429,0.15479798,63649.0,63648.0,1.66918401]
[1721331905887,0.15479798,63649.0,63648.0,1.71614742]
[1721331906143,0.001,63649.0,63648.0,2.00220206]
[1721331906385,0.002,63649.0,63648.0,2.50042987]
[1721331906601,0.003,63649.0,63648.0,2.8821091]
[1721331906833,0.003,63649.0,63648.0,2.44138068]
[1721331907065,0.04125,63660.0,63658.0,0.785445]
[1721331907289,0.00083,63668.0,63649.0,0.31422]
[1721331907290,0.19563174,63667.0,63666.0,0.633908]
[1721331907513,0.19563174,63667.0,63666.0,1.24185694]
[1721331907741,0.20058008,63667.0,63666.0,1.34185694]
[1721331907963,0.19563174,63667.0,63666.0,1.34185694]
[1721331908184,0.19563174,63667.0,63666.0,1.02771794]
[1721331908691,0.19563174,63667.0,63666.0,1.02836643]
[1721331909332,0.19563174,63667.0,63666.0,1.34250543]
[1721331909770,0.19563174,63667.0,63666.0,1.34350543]
[1721331910419,0.19663174,63667.0,63666.0,1.34350543]
[1721331912300,0.15538174,63667.0,63666.0,1.65781066]
[1721331912966,0.19663174,63667.0,63666.0,1.34267166]
[1721331913185,0.19563174,63667.0,63666.0,1.34267166]
[1721331913407,0.19563174,63667.0,63666.0,1.35467166]
[1721331913860,0.19563174,63667.0,63666.0,1.34967166]
[1721331914078,0.19563174,63667.0,63666.0,1.35167166]
[1721331914515,0.19563174,63667.0,63666.0,1.36467166]
[1721331914735,0.15438174,63667.0,63666.0,1.35167166]
[1721331915192,0.15438174,63667.0,63666.0,1.67981066]
[1721331915426,0.15438174,63667.0,63666.0,1.35667166]
[1721331915672,0.00083,63668.0,63667.0,0.471201]
[1721331915902,0.19646174,63668.0,63667.0,0.68256656]
[1721331916134,0.15521174,63668.0,63667.0,0.99669375]
[1721331916556,0.19646174,63668.0,63667.0,0.99669375]
[1721331917048,0.15521174,63668.0,63667.0,1.31082775]
[1721331917297,0.15521174,63668.0,63667.0,1.48772775]
[1721331917298,0.00083,63668.0,63667.0,1.48772775]
[1721331917530,0.00083,63668.0,63667.0,1.50172775]
[1721331917818,0.04208,63668.0,63667.0,1.48772775]
[1721331918030,0.04208,63668.0,63667.0,1.50172775]
[1721331918249,0.00083,63668.0,63667.0,1.50172775]
[1721331918467,0.00083,63668.0,63667.0,1.48772775]
[1721331918930,0.04208,63668.0,63667.0,1.5014406]
[1721331919160,0.00083,63668.0,63667.0,1.5014406]
[1721331919386,0.00083,63668.0,63667.0,1.4874406]
[1721331919606,0.00083,63668.0,63667.0,1.4734406]
[1721331919830,0.00083,63668.0,63667.0,1.4874406]
[1721331920321,0.00083,63668.0,63667.0,1.5014406]
[1721331920551,0.19646174,63668.0,63667.0,1.1733066]
[1721331920767,0.15521174,63668.0,63667.0,1.3565066]
[1721331920981,0.15521174,63668.0,63667.0,1.6846406]
[1721331921196,0.19646174,63668.0,63667.0,1.6846406]
[1721331921433,0.15521174,63668.0,63667.0,1.6846406]
[1721331921703,0.15521174,63668.0,63667.0,1.6706406]
[1721331921938,0.15521174,63668.0,63667.0,1.67034731]
[1721331922178,0.15521174,63668.0,63667.0,1.68434731]
[1721331922179,0.00083,63668.0,63667.0,1.68434731]
[1721331922630,0.00083,63668.0,63667.0,1.65634731]
[1721331922844,0.00083,63668.0,63667.0,1.68434731]
[1721331923072,0.00083,63668.0,63667.0,1.67034731]
[1721331923293,0.00083,63668.0,63667.0,1.65634731]
[1721331923506,0.00083,63668.0,63667.0,2.17034731]
[1721331923728,0.00083,63668.0,63667.0,2.18434731]
[1721331924913,0.00083,63668.0,63667.0,2.18445649]
[1721331925128,0.00083,63668.0,63667.0,2.073569]
[1721331925360,0.00083,63668.0,63667.0,2.18446682]
[1721331925797,0.00083,63668.0,63667.0,2.18464302]
[1721331926016,0.04208,63668.0,63667.0,2.18464302]
[1721331926505,0.19646174,63668.0,63667.0,1.02440902]
[1721331926761,0.19646174,63668.0,63667.0,0.71027502]
[1721331927417,0.19646174,63668.0,63667.0,0.599201]
[1721331927839,0.19646174,63668.0,63667.0,0.128]
[1721331928107,0.27056174,63668.0,63667.0,0.285067]
[1721331928316,0.27056174,63668.0,63667.0,0.128]
[1721331928540,0.27056174,63668.0,63667.0,0.23953833]
[1721331928816,0.19646174,63668.0,63667.0,1.01087333]
[1721331929319,0.19646174,63668.0,63667.0,0.23253833]
[1721331929320,0.35966174,63668.0,63667.0,0.23253833]
[1721331929567,0.35966174,63668.0,63667.0,0.021]
[1721331929796,0.36460998,63668.0,63667.0,0.014]
[1721331930012,0.1632,63667.0,63654.0,0.25050911]
[1721331930241,0.04125,63655.0,63654.0,0.25050911]
[1721331930455,0.04125,63656.0,63655.0,0.157096]
[1721331930696,0.19563174,63656.0,63655.0,0.765963]
[1721331930916,0.19563174,63656.0,63655.0,1.080156]
[1721331931351,0.19563174,63656.0,63655.0,0.45177]
[1721331931635,0.19563174,63656.0,63655.0,0.39451481]
[1721331931902,0.19563174,63656.0,63655.0,0.21131481]
[1721331931903,0.27143174,63656.0,63655.0,0.21131481]
[1721331932091,0.27143174,63656.0,63655.0,0.22131481]
[1721331932313,0.19563174,63656.0,63655.0,0.37841081]
[1721331932536,0.19563174,63656.0,63655.0,0.22131481]
[1721331932984,0.19563174,63656.0,63655.0,0.37841081]
[1721331933235,0.19563174,63656.0,63655.0,0.39041081]
[1721331933473,0.19563174,63656.0,63655.0,0.23331481]
[1721331933948,0.19563174,63656.0,63655.0,0.022]
[1721331933949,0.36173174,63656.0,63655.0,0.022]
[1721331934481,0.41173174,63656.0,63655.0,0.022]
[1721331934728,0.49995778,63656.0,63655.0,0.022]
[1721331934967,0.49995778,63656.0,63655.0,0.012]
[1721331935195,0.49995778,63656.0,63655.0,0.015]
[1721331935643,0.66535778,63656.0,63655.0,0.012]
[1721331935873,0.66535778,63656.0,63636.0,0.009163]
[1721331935874,0.09125,63649.0,63636.0,0.009163]
[1721331936094,0.71866182,63649.0,63636.0,0.009163]
[1721331936341,0.86954375,63649.0,63636.0,0.009163]
[1721331936794,1.34087775,63649.0,63636.0,0.009163]
[1721331937077,0.86954375,63649.0,63636.0,0.009163]
[1721331937524,0.80431771,63649.0,63636.0,0.009163]
[1721331937742,0.87156402,63649.0,63648.0,0.001913]
[1721331938418,0.74368209,63649.0,63648.0,0.001913]
[1721331938649,0.75356882,63649.0,63648.0,0.002913]
[1721331939111,0.74656882,63649.0,63648.0,0.000913]
[1721331939357,0.75156882,63649.0,63648.0,0.001913]
[1721331939586,0.76356705,63649.0,63648.0,0.002913]
[1721331939794,0.75156712,63649.0,63648.0,0.001913]
[1721331940014,0.69832251,63649.0,63648.0,0.002913]
[1721331940464,0.69332251,63649.0,63648.0,0.000913]
[1721331940693,0.69332251,63649.0,63648.0,0.001913]
[1721331940694,0.71132251,63649.0,63648.0,0.001913]
[1721331940954,0.69932251,63649.0,63648.0,0.001913]
[1721331941175,0.69932251,63649.0,63648.0,0.000913]
[1721331941176,0.69532251,63649.0,63648.0,0.000913]
[1721331941624,0.69532251,63649.0,63648.0,0.001913]
[1721331941625,0.45699326,63649.0,63648.0,0.001913]
[1721331941838,0.37981847,63649.0,63648.0,0.001913]
[1721331942060,0.29371847,63649.0,63648.0,0.001913]
[1721331942290,0.30571847,63649.0,63648.0,0.002913]
[1721331942520,0.05,63639.0,63599.0,0.32242908]
[1721331942734,0.15438174,63638.0,63599.0,1.20242908]
[1721331942943,0.002794,63637.0,63599.0,1.12372377]
[1721331943183,0.46304871,63631.0,63599.0,0.94534417]
[1721331943404,0.1590191,63630.0,63599.0,0.94534417]
[1721331943625,0.002794,63629.0,63599.0,0.91652101]
[1721331943835,0.15438174,63628.0,63599.0,0.91652101]
[1721331944098,0.002794,63627.0,63599.0,0.91752101]
[1721331944307,0.15438174,63626.0,63599.0,0.91752101]
[1721331944526,0.002794,63625.0,63599.0,0.91752101]
[1721331944990,0.002794,63625.0,63599.0,0.91852101]
[1721331945440,0.002794,63625.0,63599.0,0.91652101]
[1721331945679,0.002794,63625.0,63599.0,0.91752101]
[1721331945929,0.002794,63625.0,63599.0,0.91652101]
[1721331946155,0.007794,63625.0,63599.0,0.91852101]
[1721331946366,0.07717479,63623.0,63599.0,0.91852101]
[1721331946573,0.002794,63622.0,63599.0,0.91852101]
[1721331947437,0.002794,63622.0,63599.0,0.91752101]
[1721331947652,0.00464681,63621.0,63599.0,0.91752101]
[1721331947871,0.07717479,63616.0,63599.0,0.91852101]
[1721331948089,0.002794,63615.0,63599.0,0.91852101]
[1721331948297,0.002794,63615.0,63599.0,0.91752101]
[1721331948544,0.002794,63615.0,63599.0,0.91652101]
[1721331948748,0.04962637,63616.0,63599.0,0.91852101]
[1721331948973,0.07717479,63614.0,63599.0,0.91852101]
[1721331949197,0.002794,63613.0,63599.0,0.91652101]
[1721331949414,0.002794,63613.0,63599.0,0.91752101]
[1721331949664,0.002794,63613.0,63599.0,0.91652101]
[1721331949934,0.002794,63613.0,63599.0,0.91752101]
[1721331950123,0.002794,63613.0,63599.0,0.91852101]
[1721331950345,0.002794,63613.0,63599.0,0.91752101]
[1721331950787,0.002794,63614.0,63599.0,0.91843401]
[1721331951493,0.002794,63614.0,63599.0,0.91743401]
[1721331951734,0.014,63613.0,63599.0,0.91843401]
[1721331951960,0.002794,63612.0,63599.0,0.91843401]
[1721331952652,0.002794,63613.0,63603.0,0.29940221]
[1721331952898,0.02,63614.0,63613.0,0.314401]
[1721331953126,0.04962637,63616.0,63615.0,0.471586]
[1721331953359,0.15438174,63620.0,63619.0,0.471556]
[1721331953581,0.15438174,63620.0,63619.0,0.98427173]
[1721331954472,0.15438174,63620.0,63619.0,1.29864273]
[1721331955637,0.00083,63622.0,63621.0,1.100263]
[1721331955866,0.04795934,63628.0,63627.0,0.785827]
[1721331956121,0.20234108,63628.0,63627.0,1.1984281]
[1721331956345,0.07717479,63638.0,63629.0,0.314322]
[1721331956573,0.07717479,63638.0,63637.0,0.471423]
[1721331956809,0.07717479,63638.0,63637.0,0.8839751]
[1721331957037,0.07717479,63638.0,63637.0,0.9839751]
[1721331957284,0.23155653,63638.0,63637.0,0.6696931]
[1721331957783,0.30921444,63638.0,63637.0,0.1982701]
[1721331958020,0.46731444,63638.0,63629.0,0.15716]
[1721331958242,0.46731444,63638.0,63627.0,0.314329]
[1721331958243,0.05,63629.0,63628.0,0.157162]
[1721331958472,0.20438174,63629.0,63628.0,0.19672691]
[1721331958701,0.37008174,63629.0,63628.0,0.19672691]
[1721331958961,0.37474433,63629.0,63628.0,0.19672691]
[1721331959160,0.37474433,63629.0,63628.0,0.35389147]
[1721331959161,0.15904433,63629.0,63628.0,0.35389147]
[1721331959383,0.20904433,63629.0,63628.0,0.19672847]
[1721331959835,0.20904433,63629.0,63628.0,0.09672847]
[1721331960278,0.15904433,63629.0,63628.0,0.09672847]
[1721331960512,0.15904433,63629.0,63628.0,0.25389147]
[1721331960966,0.20904433,63629.0,63628.0,0.20972847]
[1721331961439,0.20904433,63629.0,63628.0,0.20969013]
[1721331961675,0.20904433,63629.0,63628.0,0.22269013]
[1721331961910,0.20904433,63629.0,63628.0,0.22269102]
[1721331962124,0.20904433,63629.0,63628.0,0.20969102]
[1721331962340,0.20904433,63629.0,63628.0,0.22269102]
[1721331962574,0.15904433,63629.0,63628.0,0.22242759]
[1721331963222,0.20904433,63629.0,63628.0,0.22242759]
[1721331964533,0.20904433,63629.0,63628.0,0.126]